[Event "79th Armenian-HL-ch Women 2024"]
[Site "Yerevan"]
[Date "2024.01.17"]
[Round "6.4"]
[White "Khachatryan, Anna"]
[Black "Khachatryan, Mariam"]
[Result "1-0"]
[ECO "A61"]
[WhiteElo "2022"]
[BlackElo "1567"]
[Annotator "NA RC"]
[PlyCount "121"]
[EventDate "2024.01.11"]
[EventType "tourn"]
[EventCountry "ARM"]
[SourceTitle "playchess.com"]
[Source "ChessBase"]
[SourceQuality "1"]
[TimeControl "40/5400+30:1800+30"]

1. d4 {[%emt 0:00:03]} Nf6 {[%emt 0:00:07]} 2. c4 {[%emt 0:00:49]} c5 {[%emt 0:00:17]} 3. d5 {[%emt 0:00:06]} a6 {[%emt 0:00:18]} 4. a4 {[%emt 0:08:31]} e6 {[%emt 0:00:50]} 5. Nc3 {[%emt 0:01:11]} Qe7 {[%emt 0:02:06]} 6. Nf3 {[%emt 0:07:30]} exd5 {[%emt 0:02:33]} 7. cxd5 {[%emt 0:00:22]} d6 {[%emt 0:01:36]} 8. h3 {[%emt 0:00:35]} g6 {[%emt 0:01:24]} 9. Bf4 {[%emt 0:00:20]} Bg7 {[%emt 0:01:01]} 10. e3 {[%emt 0:00:28]} O-O {[%emt 0:02:30]} 11. Bd3 {[%emt 0:04:46]} Nbd7 {[%emt 0:03:57]} 12. O-O {[%emt 0:01:16]} Rb8 {[%emt 0:03:23] was the old line (12...Ne8).} 13. Bh2 {[%emt 0:03:41]} Ne8 {[%emt 0:03:48] [#]} 14. Qd2 $146 {[%emt 0:24:02]} ({Predecessor:} 14. Nd2 Ne5 15. Be2 f5 16. Bxe5 Bxe5 17. Nc4 Bg7 18. a5 Nf6 19. Ra3 Nd7 20. Na4 {0-1 Malka,S (2182)-Londono,N (2080) Medellin Easter op 10th 2022 (3)}) 14... f5 {[%emt 0:11:13]} 15. Rfe1 {[%emt 0:06:59]} Ne5 {[%emt 0:08:51]} 16. Nxe5 {[%emt 0:05:30]} dxe5 {[%emt 0:00:35]} 17. a5 {[%emt 0:03:39]} Bd7 {[%emt 0:04:12]} 18. Rec1 {[%emt 0:05:28]} Nd6 {[%emt 0:03:10]} 19. Bc2 {[%emt 0:07:25]} Rbc8 {[%emt 0:05:20]} 20. Ba4 {[%emt 0:01:14]} Bb5 {[%emt 0:04:23]} 21. Kh1 {[%emt 0:07:37]} Rc7 {[%emt 0:06:58]} 22. f3 {[%emt 0:03:03]} Bh6 {[%emt 0:07:21]} 23. Bxb5 {[%emt 0:00:38]} axb5 {[%emt 0:00:28]} 24. Qe2 {[%emt 0:00:09]} c4 {[%emt 0:03:32]} 25. Re1 {[%emt 0:02:14]} Ra8 {[%emt 0:09:42]} 26. e4 {[%emt 0:02:29]} f4 {[%emt 0:01:26]} 27. Bg1 {[%emt 0:01:22]} Bg5 {[%emt 0:02:32]} 28. Qd2 {[%emt 0:00:50]} Bh4 {[%emt 0:01:10]} 29. Bf2 {[%emt 0:01:33]} Bxf2 {[%emt 0:02:22]} 30. Qxf2 {[%emt 0:00:03]} Qd7 {[%emt 0:01:05]} 31. Qd2 {[%emt 0:01:22]} Rc5 {[%emt 0:02:08]} 32. Na2 {[%emt 0:00:30]} Qc7 {[%emt 0:00:44]} 33. Qc3 {[%emt 0:00:36]} Qe7 {[%emt 0:02:15]} 34. Qb4 {[%emt 0:00:29]} Rcc8 {[%emt 0:02:15]} 35. Nc3 {[%emt 0:00:15]} Qd7 {[%emt 0:00:08]} 36. Ra3 {[%emt 0:01:25]} g5 {[%emt 0:01:50]} 37. Na2 {[%emt 0:00:00]} Qc7 {[%emt 0:00:40]} 38. Qc3 {[%emt 0:00:00]} Qg7 {[%emt 0:00:35]} 39. Nb4 {[%emt 0:00:05]} Ra6 {[%emt 0:00:35]} 40. Raa1 {[%emt 0:00:00]} Raa8 {[%emt 0:00:00]} 41. a6 {[%emt 0:02:55]} bxa6 {[%emt 0:01:43]} 42. Nxa6 {[%emt 0:00:22]} Nb7 $16 {[%emt 0:06:15]} (42... h5 $11 {remains equal.}) 43. Red1 {[%emt 0:12:38]} Qf6 {[%emt 0:02:31]} 44. Nb4 {[%emt 0:02:02]} Nc5 {[%emt 0:04:04]} 45. Rxa8 {[%emt 0:05:26]} Rxa8 {[%emt 0:00:07]} 46. d6 {[%emt 0:01:32]} Rd8 {[%emt 0:04:32]} 47. Rd5 {[%emt 0:01:11]} Nd7 {[%emt 0:03:20]} 48. Nc6 {[%emt 0:02:15]} Ra8 {[%emt 0:02:33]} 49. Nxe5 {[%emt 0:01:31]} Ra1+ {[%emt 0:02:14]} 50. Kh2 {[%emt 0:00:01]} Nxe5 {[%emt 0:04:47]} 51. Qxe5 {[%emt 0:02:31]} Qxe5 {[%emt 0:01:07]} 52. Rxe5 {[%emt 0:00:01]} Kf7 {[%emt 0:00:10]} 53. Rxb5 {[%emt 0:01:21]} h6 {[%emt 0:00:12]} 54. Rd5 {[%emt 0:04:01]} Ke8 {[%emt 0:00:26]} 55. Rc5 {[%emt 0:00:20]} Kd7 {[%emt 0:01:02]} 56. Rxc4 {[%emt 0:00:42]} Kxd6 {[%emt 0:00:06]} 57. Rc8 {[%emt 0:00:44]} Ke5 {[%emt 0:00:51]} 58. Rh8 {[%emt 0:00:39]} Kd4 {[%emt 0:00:37]} 59. Rxh6 {[%emt 0:00:19]} g4 {[%emt 0:00:33]} 60. hxg4 {[%emt 0:00:14]} Ke3 {[%emt 0:00:09]} 61. Rc6 {[%emt 0:01:04]} 1-0

[Event "79th Armenian-HL-ch Women 2024"]
[Site "Yerevan"]
[Date "2024.01.17"]
[Round "6.5"]
[White "Avetisyan, Mariam"]
[Black "Harutyunyan, Meline"]
[Result "1-0"]
[ECO "D35"]
[WhiteElo "2043"]
[BlackElo "1536"]
[Annotator "TA"]
[PlyCount "61"]
[EventDate "2024.01.11"]
[EventType "tourn"]
[EventCountry "ARM"]
[SourceTitle "playchess.com"]
[Source "ChessBase"]
[SourceQuality "1"]
[TimeControl "40/5400+30:1800+30"]

{[%evp 19,61,26,29,29,29,-33,21,12,18,0,0,-19,0,-55,0,0,0,0,0,0,0,0,57,65,83,85,204,195,172,195,176,172,214,200,800,800,997,782,750,755,1011,1000,983,974]} 1. d4 {[%emt 1:31:00]} d5 {[%emt 0:00:06]} 2. c4 {[%emt 0:00:00]} e6 {[%emt 0:00:04]} 3. Nc3 {[%emt 0:00:00]} Nf6 {[%emt 0:00:05]} 4. cxd5 {[%emt 0:00:00]} exd5 {[%emt 0:00:04]} 5. Bg5 {[%emt 0:00:00]} Be7 {[%emt 0:00:06]} 6. e3 {[%emt 0:00:00]} O-O {[%emt 0:00:16]} 7. Bd3 {[%emt 0:00:00]} Nbd7 {[%emt 0:00:12]} 8. Qc2 {[%emt 0:00:00]} Re8 {[%emt 0:03:05]} 9. Nge2 {[%emt 0:04:00]} Nf8 {[%emt 0:03:16]} 10. O-O {[%emt 0:00:00]} g6 {[%emt 0:02:44]} 11. Nf4 {[%emt 0:00:00]} c6 {[%emt 0:01:13]} 12. f3 {[%emt 0:01:30]} (12. Rab1 $11) 12... Ne6 {[%emt 0:29:13]} (12... Nh5 $15 13. Bh6 (13. Bxe7 Qxe7 14. Rfe1 Nxf4 $15) 13... Bg5 14. Bxg5 Qxg5) 13. Nxe6 $11 {[%emt 0:00:00] The position is equal.} Bxe6 {[%emt 0:00:06]} 14. Ne2 {[%emt 0:00:00]} Nh5 {[%emt 0:06:00]} 15. Bh6 {[%emt 0:00:00]} Rc8 {[%emt 0:14:15]} 16. f4 {[%emt 0:00:00]} (16. Qd2 $11) 16... Ng7 {[%emt 0:14:28]} (16... Bg4 $15) 17. Bxg7 $1 {[%emt 0:00:00]} Kxg7 {[%emt 0:00:02]} 18. f5 {[%emt 0:00:00]} Bd7 {[%emt 0:00:11]} 19. Nf4 {[%emt 0:00:00][%cal Rf5g6]} Bg5 {[%emt 0:05:45]} 20. Rae1 {[%emt 0:00:00]} Bxf4 {[%emt 0:11:11]} (20... Kh8 $11) 21. Rxf4 $14 {[%emt 0:00:00][%cal Bf1f4,Bf4f5,Bf5f6][%mdl 32]} Qg5 {[%emt 0:00:06]} 22. Qf2 {[%emt 0:00:00] Strongly threatening fxg6.} Rf8 {[%emt 0:03:21] [#]} (22... Kg8 $16 {was called for.}) 23. Rf1 $1 $18 {[%emt 0:00:00] Black must now prevent h4.} gxf5 {[%emt 0:04:10]} 24. Bxf5 {[%emt 0:00:00]} Bxf5 {[%emt 0:00:03]} 25. Rxf5 {[%emt 0:00:00]} Qg6 {[%emt 0:01:01]} 26. Rf6 {[%emt 0:00:00]} Qh5 {[%emt 0:00:26] [#]} (26... Qe4 27. Rxf7+ Rxf7 28. Qxf7+ Kh8 29. Qf6+ (29. Qxb7 Rg8 $11) 29... Kg8) 27. Qf4 {[%emt 0:00:00] Black is weak on the dark squares. White is clearly winning.} Rce8 {[%emt 0:01:40]} 28. Rf5 {[%emt 0:00:00]} Qg6 {[%emt 0:00:38]} 29. Rg5 {[%emt 0:00:00]} Re4 {[%emt 0:00:03]} 30. Rxg6+ {[%emt 0:00:00]} hxg6 {[%emt 0:00:06]} 31. Qf6+ {[%emt 0:00:00] Weighted Error Value: White=0.16 (very precise) /Black=0.39.  Mistake:       	White=2     	Black=5      OK:         	White=5     	Black=3      Best:        	White=2     	Black=1      Strong:       	White=2     	---} 1-0

[Event "79th Armenian-HL-ch Women 2024"]
[Site "Yerevan"]
[Date "2024.01.18"]
[Round "7.1"]
[White "Harutyunyan, Meline"]
[Black "Khachatryan, Anna"]
[Result "1-0"]
[ECO "D50"]
[WhiteElo "1536"]
[BlackElo "2022"]
[Annotator "NA RC"]
[PlyCount "79"]
[EventDate "2024.01.11"]
[EventType "tourn"]
[EventCountry "ARM"]
[SourceTitle "playchess.com"]
[Source "ChessBase"]
[SourceQuality "1"]
[TimeControl "40/5400+30:1800+30"]

1. d4 {[%emt 0:00:04]} Nf6 {[%emt 0:00:33]} 2. Nf3 {[%emt 0:02:17]} e6 {[%emt 0:02:11]} 3. c4 {[%emt 0:02:41]} c5 {[%emt 0:04:27]} 4. Nc3 {[%emt 0:01:53]} cxd4 {[%emt 0:05:35]} 5. Nxd4 {[%emt 0:01:30]} d5 {[%emt 0:03:53]} 6. Bg5 {[%emt 0:04:20]} Be7 {[%emt 0:07:07]} 7. e3 {[%emt 0:02:43]} O-O {[%emt 0:04:14]} 8. Be2 {[%emt 0:05:39]} dxc4 {[%emt 0:06:20]} 9. O-O {[%emt 0:28:42]} Qa5 {[%emt 0:06:08]} 10. Bh4 {[%emt 0:03:54]} e5 {[%emt 0:08:01]} 11. Nf3 {[%emt 0:01:18]} Bf5 {[%emt 0:22:10]} 12. Bxc4 {[%emt 0:03:13]} Nbd7 {[%emt 0:00:14]} 13. Qa4 {[%emt 0:08:15]} Qxa4 {[%emt 0:03:13]} 14. Nxa4 {[%emt 0:00:02]} Rac8 {[%emt 0:00:32]} 15. Bb3 {[%emt 0:12:35]} b5 {[%emt 0:09:27]} 16. Nc3 {[%emt 0:00:14]} b4 {[%emt 0:01:44]} 17. Na4 {[%emt 0:03:45]} Rfd8 {[%emt 0:07:23]} 18. Rac1 {[%emt 0:01:59]} Kf8 {[%emt 0:01:34]} 19. Bg3 {[%emt 0:06:33]} Bd6 {[%emt 0:01:28]} 20. Nd4 {[%emt 0:01:29]} Bd3 {[%emt 0:03:36]} 21. Rxc8 {[%emt 0:01:19]} Rxc8 {[%emt 0:00:00]} 22. Rd1 {[%emt 0:00:05]} Ba6 {[%emt 0:00:57]} 23. Ne6+ {[%emt 0:01:07]} fxe6 {[%emt 0:00:30]} 24. Rxd6 {[%emt 0:00:03]} Ke7 {[%emt 0:00:24]} 25. Rxe6+ {[%emt 0:00:49]} Kf8 {[%emt 0:00:15]} 26. h3 {[%emt 0:00:32]} Rc1+ {[%emt 0:00:38]} 27. Kh2 {[%emt 0:00:08]} Bc8 {[%emt 0:00:47]} 28. Bxe5 {[%emt 0:01:23]} Nxe5 {[%emt 0:00:22]} 29. Rxe5 {[%emt 0:00:03]} Rf1 {[%emt 0:01:17]} 30. f3 {[%emt 0:02:28]} h5 {[%emt 0:00:00]} 31. Nc5 {[%emt 0:01:04]} h4 {[%emt 0:00:00]} 32. Nd3 {[%emt 0:00:35]} Rb1 {[%emt 0:00:48]} 33. Nf4 {[%emt 0:00:08]} g5 {[%emt 0:00:10]} 34. Rxg5 {[%emt 0:00:45]} Rxb2 {[%emt 0:00:09]} 35. Ng6+ {[%emt 0:00:40]} Ke8 {[%emt 0:00:00]} 36. Nxh4 {[%emt 0:00:17]} a6 {[%emt 0:00:42]} 37. e4 {[%emt 0:00:31]} Bb7 {[%emt 0:01:31]} 38. Nf5 {[%emt 0:01:09]} Kd8 {[%emt 0:00:32]} 39. Nd6 {[%emt 0:01:06]} Ba8 {[%emt 0:00:26]} 40. Rg6 {[%emt 0:00:00]} 1-0

[Event "79th Armenian-HL-ch Women 2024"]
[Site "Yerevan"]
[Date "2024.01.18"]
[Round "7.2"]
[White "Kobak, Polina"]
[Black "Gaboyan, Susanna"]
[Result "0-1"]
[ECO "E94"]
[WhiteElo "2120"]
[BlackElo "2179"]
[Annotator "NA RC"]
[PlyCount "70"]
[EventDate "2024.01.11"]
[EventType "tourn"]
[EventCountry "ARM"]
[SourceTitle "playchess.com"]
[Source "ChessBase"]
[SourceQuality "1"]
[TimeControl "40/5400+30:1800+30"]

1. d4 {[%emt 0:00:04]} d6 {[%emt 0:00:31]} 2. Nf3 {[%emt 0:00:12]} Nd7 {[%emt 0:00:45]} 3. c4 {[%emt 0:01:47]} e5 {[%emt 0:00:31]} 4. Nc3 {[%emt 0:00:34]} Ngf6 {[%emt 0:01:03]} 5. e4 {[%emt 0:01:11]} g6 {[%emt 0:03:36]} 6. Be2 {[%emt 0:01:13]} Bg7 {[%emt 0:00:08]} 7. O-O {[%emt 0:00:16]} O-O {[%emt 0:00:06]} 8. Be3 {[%emt 0:02:15]} h6 {[%emt 0:05:40]} 9. d5 {[%emt 0:12:23]} Ng4 {[%emt 0:02:36]} 10. Bd2 {[%emt 0:00:24]} f5 {[%emt 0:00:28]} 11. b4 {[%emt 0:21:30]} f4 {[%emt 0:01:48]} 12. Ne1 {[%emt 0:02:46]} Ngf6 {[%emt 0:00:57]} 13. Nd3 {[%emt 0:01:56]} g5 {[%emt 0:10:26]} 14. f3 {[%emt 0:04:17]} h5 {[%emt 0:01:49]} 15. Be1 {[%emt 0:00:37]} a6 $16 {[%emt 0:03:56]} (15... Rf7 $14 {feels stronger.}) 16. Bf2 {[%emt 0:04:04]} Qe8 {[%emt 0:01:14]} 17. c5 {[%emt 0:08:23]} Qg6 {[%emt 0:00:38]} 18. Qc2 {[%emt 0:07:32]} g4 {[%emt 0:01:13]} 19. Kh1 {[%emt 0:00:23]} Rf7 {[%emt 0:04:11]} 20. Rfc1 {[%emt 0:02:50]} h4 {[%emt 0:12:38]} 21. Bf1 {[%emt 0:09:21]} g3 {[%emt 0:09:53]} 22. Bg1 {[%emt 0:02:18]} gxh2 {[%emt 0:00:24]} 23. Bf2 {[%emt 0:01:01]} Nh5 {[%emt 0:02:49]} 24. Ne2 {[%emt 0:05:34]} Ng3+ {[%emt 0:05:59]} 25. Bxg3 {[%emt 0:00:55]} fxg3 {[%emt 0:00:56]} 26. Nc3 {[%emt 0:01:40]} Bh6 {[%emt 0:06:29]} 27. Re1 {[%emt 0:00:28]} Nf6 {[%emt 0:00:51]} 28. a4 {[%emt 0:03:19]} Nh7 {[%emt 0:02:30]} 29. Ra2 {[%emt 0:02:00]} Ng5 {[%emt 0:00:23]} 30. Rb1 {[%emt 0:01:03]} h3 {[%emt 0:01:34]} 31. Ne1 {[%emt 0:00:16]} Bg4 {[%emt 0:02:22]} 32. Qd3 {[%emt 0:00:48]} Raf8 {[%emt 0:00:40]} 33. gxh3 {[%emt 0:01:05]} Bxf3+ {[%emt 0:03:08]} 34. Bg2 {[%emt 0:00:55]} Bxg2+ {[%emt 0:00:32]} 35. Nxg2 {[%emt 0:00:06]} Nxe4 {[%emt 0:01:39]} 0-1

[Event "79th Armenian-HL-ch Women 2024"]
[Site "Yerevan"]
[Date "2024.01.18"]
[Round "7.3"]
[White "Gasparyan, Milena"]
[Black "Avetisyan, Mariam"]
[Result "0-1"]
[ECO "B19"]
[WhiteElo "1802"]
[BlackElo "2043"]
[Annotator "NA RC"]
[PlyCount "128"]
[EventDate "2024.01.11"]
[EventType "tourn"]
[EventCountry "ARM"]
[SourceTitle "playchess.com"]
[Source "ChessBase"]
[SourceQuality "1"]
[TimeControl "40/5400+30:1800+30"]

1. e4 {[%emt 0:00:03]} c6 {[%emt 0:05:53]} 2. d4 {[%emt 0:00:07]} d5 {[%emt 0:00:03]} 3. Nc3 {[%emt 0:00:07]} dxe4 {[%emt 0:00:04]} 4. Nxe4 {[%emt 0:00:06]} Bf5 {[%emt 0:00:02]} 5. Ng3 {[%emt 0:00:09]} Bg6 {[%emt 0:00:03]} 6. Nf3 {[%emt 0:00:07]} Nd7 {[%emt 0:00:18]} 7. h4 {[%emt 0:00:22]} h6 {[%emt 0:00:05]} 8. Bd3 {[%emt 0:01:54]} Bxd3 {[%emt 0:00:12]} 9. Qxd3 {[%emt 0:00:06]} e6 {[%emt 0:01:10]} 10. Bf4 {[%emt 0:01:43]} Ngf6 {[%emt 0:03:58]} 11. Ne4 {[%emt 0:07:43]} Nxe4 {[%emt 0:01:10]} 12. Qxe4 {[%emt 0:00:05]} Nf6 {[%emt 0:00:10]} 13. Qe2 {[%emt 0:00:25]} Qd5 {[%emt 0:05:38]} 14. c3 {[%emt 0:10:42]} Be7 {[%emt 0:03:15]} 15. Qe5 {[%emt 0:08:41]} Rd8 {[%emt 0:19:22]} 16. Qxd5 {[%emt 0:09:18]} Nxd5 {[%emt 0:07:02]} 17. Be5 {[%emt 0:03:06]} f6 {[%emt 0:02:28]} 18. Bg3 {[%emt 0:01:21]} Kf7 {[%emt 0:00:46]} 19. O-O-O {[%emt 0:02:41]} b5 {[%emt 0:12:27]} 20. Kc2 {[%emt 0:05:58]} Rc8 {[%emt 0:00:52]} 21. b4 {[%emt 0:05:20]} a5 {[%emt 0:01:28]} 22. a3 {[%emt 0:00:13]} Ra8 {[%emt 0:00:18]} 23. Ra1 {[%emt 0:00:49]} Ra7 {[%emt 0:00:49]} 24. Nd2 {[%emt 0:05:24]} Rha8 {[%emt 0:01:24]} 25. Rab1 {[%emt 0:02:37]} axb4 {[%emt 0:01:06]} 26. axb4 {[%emt 0:00:05]} Ra2+ {[%emt 0:03:40]} 27. Rb2 {[%emt 0:00:22]} R8a3 {[%emt 0:02:37]} 28. Nb1 {[%emt 0:14:22]} Ra4 {[%emt 0:02:30]} 29. Re1 {[%emt 0:06:42]} Ra1 {[%emt 0:05:57]} 30. f3 {[%emt 0:00:59]} f5 {[%emt 0:03:22]} 31. Bf2 {[%emt 0:00:28]} R1a2 {[%emt 0:02:30]} 32. Kb3 {[%emt 0:08:08]} Rxb2+ {[%emt 0:00:33]} 33. Kxb2 {[%emt 0:00:05]} Nf4 {[%emt 0:00:18]} 34. Rd1 {[%emt 0:01:34]} Nxg2 {[%emt 0:00:16]} 35. Rh1 {[%emt 0:00:25]} Nf4 {[%emt 0:00:20]} 36. Bg3 {[%emt 0:01:01]} Nd5 {[%emt 0:01:13]} 37. Be5 {[%emt 0:00:53]} g6 {[%emt 0:03:59]} 38. Nd2 {[%emt 0:00:56]} Ra8 {[%emt 0:02:36]} 39. Nb3 {[%emt 0:01:10]} Ne3 {[%emt 0:00:49]} 40. Na5 {[%emt 0:00:00]} Nc4+ {[%emt 0:00:00]} 41. Nxc4 {[%emt 0:00:24]} bxc4 {[%emt 0:03:09]} 42. f4 {[%emt 0:00:34]} Ra7 {[%emt 0:03:55]} 43. Bb8 {[%emt 0:03:26]} Ra8 {[%emt 0:03:35]} 44. Be5 {[%emt 0:00:06]} Ra6 {[%emt 0:06:52]} 45. Bc7 {[%emt 0:00:58]} Bf6 {[%emt 0:01:22]} 46. Bd6 {[%emt 0:01:49]} g5 {[%emt 0:02:37]} 47. hxg5 {[%emt 0:00:22]} hxg5 {[%emt 0:00:05]} 48. fxg5 {[%emt 0:01:06]} Bxg5 {[%emt 0:00:04]} 49. Rh8 {[%emt 0:02:57]} f4 {[%emt 0:05:18]} 50. Rc8 {[%emt 0:00:49]} Kg7 {[%emt 0:02:28]} 51. Be5+ {[%emt 0:00:15]} Kf7 {[%emt 0:00:19]} 52. Bd6 {[%emt 0:00:06]} Bh6 {[%emt 0:01:17]} 53. Rc7+ {[%emt 0:08:16]} Kg6 {[%emt 0:00:14]} 54. Re7 {[%emt 0:00:50]} Bf8 {[%emt 0:04:00]} 55. Rd7 {[%emt 0:02:18]} Bxd6 {[%emt 0:01:10]} 56. Rxd6 {[%emt 0:00:06]} Kf5 {[%emt 0:00:53]} 57. b5 {[%emt 0:01:48]} Rb6 {[%emt 0:00:04]} 58. Rxc6 {[%emt 0:00:08]} Rxb5+ {[%emt 0:00:02]} 59. Kc2 {[%emt 0:00:07]} f3 {[%emt 0:01:27]} 60. Kd2 {[%emt 0:01:15]} Rb2+ {[%emt 0:00:21]} 61. Ke1 {[%emt 0:00:12]} Rc2 {[%emt 0:00:27]} 62. Rxc4 {[%emt 0:12:16]} Ke4 {[%emt 0:02:03]} 63. d5+ {[%emt 0:04:04]} Ke3 {[%emt 0:00:13]} 64. Kd1 {[%emt 0:00:57]} Rd2+ {[%emt 0:00:05]} 0-1

[Event "79th Armenian-HL-ch Women 2024"]
[Site "Yerevan"]
[Date "2024.01.18"]
[Round "7.5"]
[White "Khachatryan, Mariam"]
[Black "Grigoryan, Arpine"]
[Result "0-1"]
[ECO "D35"]
[WhiteElo "1567"]
[BlackElo "2025"]
[Annotator "NA RC"]
[PlyCount "82"]
[EventDate "2024.01.11"]
[EventType "tourn"]
[EventCountry "ARM"]
[SourceTitle "playchess.com"]
[Source "ChessBase"]
[SourceQuality "1"]
[TimeControl "40/5400+30:1800+30"]

1. d4 {[%emt 0:00:03]} d5 {[%emt 0:00:25]} 2. c4 {[%emt 0:00:08]} e6 {[%emt 0:00:05]} 3. Nc3 {[%emt 0:00:12]} Nf6 {[%emt 0:00:20]} 4. cxd5 {[%emt 0:00:15]} exd5 {[%emt 0:00:05]} 5. Bg5 {[%emt 0:00:10]} Be7 {[%emt 0:00:20]} 6. e3 {[%emt 0:00:13]} O-O {[%emt 0:01:56]} 7. Bd3 {[%emt 0:00:18]} Nbd7 {[%emt 0:01:03]} 8. Nge2 {[%emt 0:00:23]} c6 {[%emt 0:00:58]} 9. O-O {[%emt 0:01:30]} Ne4 {[%emt 0:16:00]} 10. Bf4 {[%emt 0:04:05]} f5 {[%emt 0:08:13]} 11. Qc2 {[%emt 0:06:09]} Ndf6 {[%emt 0:12:03]} 12. f3 {[%emt 0:04:04]} Nxc3 {[%emt 0:00:43]} 13. bxc3 {[%emt 0:01:48]} Ne8 {[%emt 0:09:11]} 14. Rab1 {[%emt 0:08:56]} Bd6 {[%emt 0:05:33]} 15. c4 {[%emt 0:06:55]} Nc7 {[%emt 0:07:18]} 16. Bxd6 {[%emt 0:06:10]} Qxd6 {[%emt 0:00:10]} 17. e4 {[%emt 0:00:32]} dxc4 {[%emt 0:08:15]} 18. Bxc4+ {[%emt 0:00:47]} Kh8 {[%emt 0:00:31]} 19. e5 {[%emt 0:00:30]} Qe7 {[%emt 0:01:04]} 20. f4 {[%emt 0:01:03]} b6 {[%emt 0:01:23]} 21. Rf3 {[%emt 0:06:44]} Bb7 {[%emt 0:05:29]} 22. Bd3 {[%emt 0:11:32]} g6 {[%emt 0:01:06]} 23. Rg3 {[%emt 0:03:19]} Ne6 {[%emt 0:01:39]} 24. Bc4 {[%emt 0:09:48]} Rad8 {[%emt 0:01:43]} 25. Rd1 {[%emt 0:01:23]} Rd7 {[%emt 0:01:24]} 26. h4 {[%emt 0:04:26]} Ng7 {[%emt 0:02:02]} 27. Rg5 {[%emt 0:05:57]} Ne6 {[%emt 0:04:51]} 28. Bxe6 {[%emt 0:01:29]} Qxe6 {[%emt 0:00:03]} 29. h5 {[%emt 0:03:36]} Rfd8 {[%emt 0:03:17]} 30. hxg6 {[%emt 0:02:11]} hxg6 {[%emt 0:00:04]} 31. g4 {[%emt 0:01:19]} Rg8 {[%emt 0:04:09]} 32. d5 {[%emt 0:04:40]} Rxd5 {[%emt 0:01:32]} 33. Nd4 {[%emt 0:00:58]} Qe7 {[%emt 0:00:37]} 34. Kf2 {[%emt 0:01:04]} Qh7 {[%emt 0:02:11]} 35. Kg3 {[%emt 0:02:32]} Rgd8 {[%emt 0:00:56]} 36. Qc3 {[%emt 0:02:20]} c5 {[%emt 0:00:32]} 37. Nxf5 {[%emt 0:00:07]} Rxd1 {[%emt 0:00:59]} 38. e6+ {[%emt 0:00:09]} R8d4 {[%emt 0:00:39]} 39. Nxd4 {[%emt 0:00:58]} cxd4 {[%emt 0:00:12]} 40. Qa3 {[%emt 0:00:00]} Rg1+ {[%emt 0:00:00]} 41. Kf2 {[%emt 0:01:19]} Qh2# {[%emt 0:00:21]} 0-1

[Event "79th Armenian-HL-ch Women 2024"]
[Site "Yerevan"]
[Date "2024.01.19"]
[Round "8.1"]
[White "Grigoryan, Arpine"]
[Black "Harutyunyan, Meline"]
[Result "1-0"]
[ECO "C10"]
[WhiteElo "2025"]
[BlackElo "1536"]
[Annotator "NA RC"]
[PlyCount "71"]
[EventDate "2024.01.11"]
[EventType "tourn"]
[EventCountry "ARM"]
[SourceTitle "playchess.com"]
[Source "ChessBase"]
[SourceQuality "1"]
[TimeControl "40/5400+30:1800+30"]

1. e4 {[%emt 0:00:03]} e6 {[%emt 0:00:04]} 2. d4 {[%emt 0:00:11]} d5 {[%emt 0:00:05]} 3. Nd2 {[%emt 0:00:21]} dxe4 {[%emt 0:00:07]} 4. Nxe4 {[%emt 0:00:03]} Nd7 {[%emt 0:00:05]} 5. Nf3 {[%emt 0:00:58]} Ngf6 {[%emt 0:00:05]} 6. Bd3 {[%emt 0:01:42]} Nxe4 {[%emt 0:00:31]} 7. Bxe4 {[%emt 0:00:05]} Nf6 {[%emt 0:00:04]} 8. Bd3 {[%emt 0:00:05]} c5 {[%emt 0:00:20]} 9. Be3 {[%emt 0:00:36]} Qc7 {[%emt 0:12:26]} 10. Qe2 {[%emt 0:03:58]} Bd6 {[%emt 0:03:25]} 11. O-O-O {[%emt 0:09:06]} O-O {[%emt 0:02:08]} 12. Kb1 {[%emt 0:06:29]} a6 {[%emt 0:12:23]} 13. h4 {[%emt 0:06:27]} b5 {[%emt 0:01:04]} 14. dxc5 {[%emt 0:01:44]} Bxc5 {[%emt 0:01:18]} 15. Ng5 {[%emt 0:09:14]} Bxe3 {[%emt 0:04:00]} 16. fxe3 {[%emt 0:02:33]} e5 {[%emt 0:20:32]} 17. Rdf1 {[%emt 0:08:11]} Bg4 {[%emt 0:00:22]} 18. Qe1 {[%emt 0:04:25]} h5 {[%emt 0:10:14]} 19. Rxf6 {[%emt 0:13:23]} gxf6 {[%emt 0:00:21]} 20. Nh7 {[%emt 0:01:12]} f5 {[%emt 0:00:28]} 21. Nf6+ {[%emt 0:07:21]} Kg7 {[%emt 0:01:59]} 22. Nxg4 {[%emt 0:01:53]} fxg4 {[%emt 0:01:30]} 23. Rf1 {[%emt 0:02:41]} Qe7 {[%emt 0:04:19]} 24. Rf5 {[%emt 0:02:27]} Rh8 {[%emt 0:13:45]} 25. Qg3 {[%emt 0:00:37]} Rae8 {[%emt 0:06:39]} 26. Be4 {[%emt 0:00:55]} f6 {[%emt 0:03:24]} 27. Rxh5 {[%emt 0:00:51]} Rxh5 {[%emt 0:00:01]} 28. Qxg4+ {[%emt 0:00:07]} Rg5 {[%emt 0:00:02]} 29. hxg5 {[%emt 0:00:13]} fxg5 {[%emt 0:00:01]} 30. Qh5 {[%emt 0:01:15]} Rh8 {[%emt 0:00:04]} 31. Qg6+ {[%emt 0:00:05]} Kf8 {[%emt 0:00:02]} 32. b3 {[%emt 0:01:01]} b4 {[%emt 0:02:20]} 33. Qxa6 {[%emt 0:01:29]} Rh1+ {[%emt 0:00:16]} 34. Kb2 {[%emt 0:00:03]} Qc5 {[%emt 0:01:10]} 35. Qf6+ {[%emt 0:00:43]} Ke8 {[%emt 0:00:46]} 36. Bc6+ {[%emt 0:16:03]} 1-0